Cogmind - Beta 13 @@@ ROGUE MODE // 2024.05.21 @ 16:09:44 Player: Lunace Result: Destroyed by B1-4L4(p) with Heavy Riot Gun Performance ------------- Evolutions (9) 4500 Regions Visited (12) 2400 Robots Destroyed (126) 630 Value Destroyed (4428) 4428 Prototype IDs (89) 1780 Alien Tech Used (0) 0 Bonus (124) 124 TOTAL SCORE: 13862 Bonus ------- High Alert Combat Kills 64 Follower Combat Kills 60 Cogmind --------- Core Integrity 0/1600 Matter 244/300 Energy 100/100 System Corruption 0% Temperature Cool (2) Movement Flying (40) Location -1/Command Parts ------- > --- POWER (2) -------- (None) > --- PROPULSION (6) --- Field Propulsion Array > --- UTILITY (15) ----- Enhanced Optical Array Advanced Signal Interpreter Advanced Signal Interpreter Advanced Hacking Suite Advanced Corruption Screen > --- WEAPON (2) ------- (None) > --- INVENTORY (5) ---- (None) Peak State ------------ > --- POWER ------------ Micro Antimatter Reactor Micro Antimatter Reactor > --- PROPULSION ------- Field Propulsion Array Field Propulsion Array Field Propulsion Array > --- UTILITY ---------- Medium Storage Unit Improved Trap Scanner Enhanced Optical Array Advanced Signal Interpreter Advanced Terrain Scanner Advanced Terrain Scan Processor Advanced Transmission Jammer Advanced Hacking Suite Advanced Hacking Suite Advanced Hacking Suite Advanced System Shield > --- WEAPON ----------- Fusion Bomb Launcher Enhanced Force Lance > --- INVENTORY -------- Experimental Thermal Generator Advanced Remote Shield Improved Energy Mantle Advanced System Restoration Module Improved Plasma Cutter Gravity Flail Spear Enhanced Force Lance [Rating: 135] Favorites ----------- Power Meta Core Engine Ion Engine Power Core Meta Core Reactor Micro Antimatter Reactor Propulsion Biomechanical Wings Treads Heavy Treads Leg Aluminum Leg Wheel Subdweller Monowheel Hover Unit Antigrav System Flight Unit Biomechanical Wings Utility Advanced Hacking Suite Device Advanced Sensor Array Storage Medium Storage Unit Processor Enhanced Optical Array Hackware Advanced Hacking Suite Protection Scrap Shield Weapon Spear Energy Gun Enhanced Quantum Rifle Energy Cannon Subdweller Beam Cannon Ballistic Gun Assault Rifle Ballistic Cannon Battle Cannon Launcher Mini Grenade Launcher Impact Weapon Gravity Flail Slashing Weapon Makeshift Sword Piercing Weapon Spear Build | -11 -10 -10 -10 -8 -7 -6 -5 -4 -3 -2 -1 -1 ------- Run | Yrd Mat Min Sub Mat Fac Fac Fac Fac Res Res Acc Com Slots Evolved 18 | . . . . 4 2 2 2 2 2 2 2 . Power 1 | . . . . . . . . . 1 . . . Propulsion 4 | . . . . 1 1 . . 2 . . . . Utility 13 | . . . . 3 1 2 2 . 1 2 2 . Weapon . | . . . . . . . . . . . . . Parts Attached 195 | 7 1 1 23 18 15 11 19 26 17 31 26 . Power 22 | 1 . 1 3 . . . . 2 5 3 7 . Engine 6 | 1 . 1 2 . . . . . 2 . . . Core 1 | . . . 1 . . . . . . . . . Reactor 15 | . . . . . . . . 2 3 3 7 . Propulsion 64 | 3 . . 9 4 6 5 3 8 3 15 8 . Treads 8 | 1 . . . . . . . . . 7 . . Leg 21 | 2 . . 8 4 . . . . . 1 6 . Wheel 1 | . . . 1 . . . . . . . . . Hover 12 | . . . . . . . . 7 . 5 . . Flight 22 | . . . . . 6 5 3 1 3 2 2 . Utility 77 | 1 1 . 4 6 7 4 15 15 5 10 9 . Device 46 | . 1 . 2 3 2 1 7 12 5 9 4 . Storage 6 | 1 . . 1 1 1 1 . . . 1 . . Processor 9 | . . . . 2 1 . 3 . . . 3 . Hackware 15 | . . . . . 3 2 5 3 . . 2 . Protection 1 | . . . 1 . . . . . . . . . Artifact . | . . . . . . . . . . . . . Weapon 32 | 2 . . 7 8 2 2 1 1 4 3 2 . Energy Gun 1 | . . . . . . . . . . 1 . . Energy Cannon 1 | . . . 1 . . . . . . . . . Ballistic Gun 7 | 2 . . 3 2 . . . . . . . . Ballistic Cannon 6 | . . . 2 2 . . . . . . 2 . Launcher 9 | . . . 1 3 1 2 . . 2 . . . Special Weapon . | . . . . . . . . . . . . . Impact Weapon 2 | . . . . . . . . . 1 1 . . Slashing Weapon 1 | . . . . 1 . . . . . . . . Piercing Weapon 5 | . . . . . 1 . 1 1 1 1 . . Special Melee Weapon . | . . . . . . . . . . . . . Unidentified Prototypes 5 | . . . . . . 2 . . . 2 1 . Parts Lost 75 | . . . 5 4 1 1 4 8 11 15 26 . Power 8 | . . . 1 . . . . . 1 2 4 . Propulsion 30 | . . . 2 3 1 . . 5 3 9 7 . Utility 30 | . . . 2 1 . . 4 2 6 3 12 . Weapon 7 | . . . . . . 1 . 1 1 1 3 . Highest Loss Streak 11 | . . . 2 2 1 1 2 4 9 8 11 . To Critical Strikes 3 | . . . . . . . . . . . 3 . Average Slot Usage (%) 84 | . 97 100 88 76 94 96 98 92 75 37 56 24 Engine 2 | . 14 14 11 . . . . . 1 . . . Core 3 | . . . 1 7 7 6 5 3 . . . . Leg 8 | . 28 28 28 17 . . . . . . 7 . Hover 1 | . . . . . . . . 9 . 2 1 . Flight 10 | . . . . . 24 25 21 18 13 . . 4 Device 11 | . 11 14 5 18 13 12 11 15 13 7 11 . Storage 6 | . 14 14 12 7 7 6 5 5 3 . 3 . Processor 9 | . . . . 9 10 6 13 15 13 8 16 16 Hackware 12 | . . . . . 17 30 28 14 18 8 9 4 Ballistic Gun 2 | . 28 28 6 1 . . . . . . . . Ballistic Cannon 4 | . . . 18 10 . . . . . . . . Launcher 1 | . . . . 2 6 3 . . . . . . Piercing Weapon 4 | . . . . . 4 6 10 7 3 1 3 . Naked Turns . | . . . . . . . . . . . . . Heaviest Build 80 | 14 15 15 35 21 21 21 24 31 45 23 80 . Greatest Support 210 | 20 20 20 30 38 25 26 24 44 45 210 110 15 Greatest Overweight (x) 14 | . . . 1 1 1 . 1 1 1 3 14 . Average Overweight (x) . | . . . . . . . . . . . . . Largest Inventory Capacity 10 | 8 8 8 8 8 10 10 10 10 10 10 10 5 Average Capacity 8 | 6 8 8 7 8 9 10 10 10 9 5 8 5 Most Carried 10 | 1 2 5 8 8 8 10 10 10 10 5 8 . Average Carried 6 | . 1 4 6 7 6 8 7 8 7 3 5 . Final Capacity 10 | 8 8 8 8 8 10 10 10 10 5 10 5 5 Final Carried 10 | 1 2 5 7 8 7 10 7 10 5 4 . . Class Distribution -------------------- 29% | Mutant 15% | Hacker-Mutant 14% | Hacker-Ninja 13% | Hacker-Sprinter 9% | Hacker-Scout 9% | Wizard-Ninja 4% | Scavenger-Mutant Dominant Class ---------------- Mutant | -10/Materials Mutant | -10/Mines Mutant | -10/Subcaves Mutant | -8/Materials Hacker-Sprinter | -7/Factory Hacker-Sprinter | -6/Factory Wizard-Ninja | -5/Factory Hacker-Ninja | -4/Factory Hacker-Scout | -3/Research Hacker-Mutant | -2/Research Hacker-Mutant | -1/Access Mutant | -1/Command Resources | -11 -10 -10 -10 -8 -7 -6 -5 -4 -3 -2 -1 -1 ----------- Run | Yrd Mat Min Sub Mat Fac Fac Fac Fac Res Res Acc Com Matter Collected 2983 | 202 . 152 577 384 334 114 278 200 153 330 246 13 Remotely . | . . . . . . . . . . . . . Salvage Created 5342 | . . 58 345 694 412 293 475 883 575 1088 519 . Parts 276 | . . 2 26 34 24 16 39 50 22 43 20 . Haulers Intercepted 7 | . . . . 1 1 2 1 . 1 1 . . Recyclers Shooed 6 | . . 1 . . . . 2 1 1 1 . . Parts Field Recycled . | . . . . . . . . . . . . . Retrieved Matter . | . . . . . . . . . . . . . Parts Self-Destructed 11 | . . . 11 . . . . . . . . . Prevented . | . . . . . . . . . . . . . Kills | -11 -10 -10 -10 -8 -7 -6 -5 -4 -3 -2 -1 -1 ------- Run | Yrd Mat Min Sub Mat Fac Fac Fac Fac Res Res Acc Com Combat Hostiles Destroyed 70 | . . 1 13 20 1 3 7 5 4 10 6 . Melee 19 | . . . . . . . 3 5 . 6 5 . Guns 8 | . . 1 6 1 . . . . . . . . Cannons 11 | . . . 4 6 . . . . . . 1 . AOE 28 | . . . 3 13 1 3 4 . 4 . . . Classes Destroyed 18 | . . 1 3 7 4 . 2 1 . . . . Worker 11 | . . . . . 2 . 2 2 2 2 1 . Builder 7 | . . . . 1 1 . 2 3 . . . . Tunneler 1 | . . . . . 1 . . . . . . . Hauler 7 | . . . . 1 1 2 1 . 1 1 . . Recycler 11 | . . . . 1 2 . 1 3 2 2 . . Mechanic 1 | . . . . . 1 . . . . . . . Operator 3 | . . . . . 1 1 . . . . 1 . Turret 2 | . . . 2 . . . . . . . . . Watcher 14 | . . . . 1 2 1 5 3 1 1 . . Swarmer 16 | . . . 3 4 . 3 4 . 2 . . . Cutter 2 | . . . . . . . 2 . . . . . Grunt 14 | . . 1 1 8 . . . . 2 . 2 . Sentry 6 | . . . . 4 . . . . . 1 1 . Specialist 2 | . . . . 2 . . . . . . . . Hunter 8 | . . . . 2 1 . . . . 2 3 . Programmer 12 | . . . . . . . . 5 . 7 . . Subdweller 9 | . . . 9 . . . . . . . . . Assembled 1 | . . . . . . . 1 . . . . . Best Kill Streak 7 | . . 1 5 6 4 3 7 7 4 4 1 . Combat Bots Only 5 | . . 1 3 5 1 3 5 3 4 4 1 . Max Kills in Single Turn 3 | . . 1 2 3 2 3 3 1 2 1 1 . Gunslinging . | . . . . . . . . . . . . . Exploded 3 | . . . 2 3 1 3 3 . 2 . . . Melee 1 | . . . . . . . 1 1 . 1 1 . Uniques/NPCs Destroyed . | . . . . . . . . . . . . . Combat | -11 -10 -10 -10 -8 -7 -6 -5 -4 -3 -2 -1 -1 -------- Run | Yrd Mat Min Sub Mat Fac Fac Fac Fac Res Res Acc Com Hostile Shots Fired 988 | . . 9 108 75 9 12 34 55 103 208 367 8 Missed 341 | . . 3 39 30 3 7 16 15 42 46 135 5 Damage Taken 13911 | . . 93 1168 743 89 104 553 867 1422 4000 4829 43 Core 4126 | . . 15 234 146 . 18 294 386 461 967 1562 43 Absorbed by Shields 507 | . . . . . . . . . . . 507 . Reduced by Siege Mode 139 | . . . . . . . . . . 139 . . Regen/Repaired (Parts) 60 | . . . . . 16 . 10 34 . . . . Core Remaining (%) 67 | 100 . . . 73 100 97 70 66 64 33 . . Volleys Fired 136 | . . 8 68 35 5 6 . . 3 . 11 . Largest 3 | . . 2 2 3 1 1 . . 1 . 2 . Hottest 125 | . . 40 110 89 30 30 . . 52 . 125 . Shots Fired 226 | . . 16 120 57 5 6 . . 3 . 19 . Gun 75 | . . 16 54 5 . . . . . . . . Cannon 115 | . . . 59 37 . . . . . . 19 . Launcher 36 | . . . 7 15 5 6 . . 3 . . . Special . | . . . . . . . . . . . . . Kinetic 169 | . . 16 92 42 . . . . . . 19 . Thermal 21 | . . . 21 . . . . . . . . . Explosive 36 | . . . 7 15 5 6 . . 3 . . . Electromagnetic . | . . . . . . . . . . . . . Robot Hit Streak 11 | . . 6 11 7 10 . . . 1 . 7 . Robot Miss Streak 6 | . . 1 3 6 . 1 . . 3 . 1 . Penetration Max . | . . . . . . . . . . . . . Secondary Targets 1 | . . . 1 . . . . . . . . . Max Gunslinging Chain 1 | . . . 1 . . . . . . . . . Shots Hit Robots 295 | . . 13 63 31 19 6 21 38 11 55 38 . Core Hits 170 | . . 5 25 39 11 10 15 19 16 9 21 . Critical Kills 2 | . . . . 1 . . . . . 1 . . Critical Parts Destroyed 10 | . . . . . . . . . . 10 . . Critical Strikes 34 | . . . 1 2 . 2 . 10 4 12 3 . Destroy 1 | . . . . 1 . . . . . . . . Blast 2 | . . . 1 1 . . . . . . . . Smash 11 | . . . . . . . . . . 11 . . Impale 20 | . . . . . . 2 . 10 4 1 3 . Melee Attacks 420 | . . . . 1 30 34 110 101 24 90 30 . Impact 66 | . . . . . . . . . . 66 . . Slashing 4 | . . . . 1 3 . . . . . . . Piercing 350 | . . . . . 27 34 110 101 24 24 30 . Sneak Attacks 47 | . . . . 1 8 2 8 11 7 8 2 . Combat Hostiles 1 | . . . . . . . . . . . 1 . Follow-up Attacks 7 | . . . . . . . 4 3 . . . . Damage Inflicted 16000 | . . 146 1535 2017 1123 558 2448 1379 1658 3538 1598 . Guns 855 | . . 146 660 49 . . . . . . . . Cannons 1584 | . . . 605 570 . . . . . . 409 . Explosions 4393 | . . . 270 1322 278 239 1469 . 815 . . . Melee 9146 | . . . . 76 845 319 979 1379 843 3538 1167 . Ramming 22 | . . . . . . . . . . . 22 . Kinetic 2056 | . . 146 882 619 . . . . . . 409 . Thermal 495 | . . . 383 . . . 112 . . . . . Explosive 4281 | . . . 270 1322 278 239 1357 . 815 . . . Electromagnetic . | . . . . . . . . . . . . . Impact 2704 | . . . . . . . . . . 2704 . . Slashing 214 | . . . . 76 138 . . . . . . . Piercing 6228 | . . . . . 707 319 979 1379 843 834 1167 . Highest Corruption 12 | . . . . 1 . 2 5 5 1 12 . . Average Corruption 3 | . . . . 1 . 2 4 3 1 6 . . Corruption Purged . | . . . . . . . . . . . . . Corruption Blocked 1 | . . . . . . . . . . . 1 . Effects 35 | . . . . 5 . . 9 7 1 13 . . Message Errors 9 | . . . . 1 . . 2 2 1 3 . . Matter Fused 11 | . . . . 1 . . 5 1 . 4 . . Heat Flow Errors 2 | . . . . 1 . . . . . 1 . . Energy Discharges 1 | . . . . . . . . . . 1 . . Parts Fused 2 | . . . . . . . . . . 2 . . Data Loss (minor) 8 | . . . . 1 . . 1 4 . 2 . . Data Loss (major) 1 | . . . . . . . 1 . . . . . Weapon Failures 1 | . . . . 1 . . . . . . . . Overload Shots . | . . . . . . . . . . . . . Overflow Damage 2308 | . . . 31 86 151 13 379 160 25 1359 104 . Projectiles . | . . . . . . . . . . . . . Explosions 300 | . . . 31 50 28 . 191 . . . . . Melee 2008 | . . . . 36 123 13 188 160 25 1359 104 . Knockbacks 19 | . . . 1 2 . . . . . 13 3 . Impact 13 | . . . . . . . . . . 13 . . Kinetic 5 | . . . 1 2 . . . . . . 2 . Secondary 1 | . . . . . . . . . . . 1 . Self-Inflicted Damage 139 | . . . . 118 . . . . 17 . 4 . Shots 7 | . . . . 6 . . . . 1 . . . Rammed 5 | . . . . . . . . . . 1 4 . Targets Rammed 9 | . . . . . . . . . . 1 8 . Kicked 4 | . . . . . . . . . . . 4 . Crushed . | . . . . . . . . . . . . . Highest Temperature 197 | . . . 54 197 . . . . 29 73 119 . Average Temperature 52 | . . . 33 58 . . . . 10 48 71 . Received Heat Transfer 812 | . . 54 234 144 18 15 9 9 93 126 110 . Siege Activations 1 | . . . . . . . . . . 1 . . Total Turns 16 | . . . . . . . . . . 16 . . Longest Duration 16 | . . . . . . . . . . 16 . . Robots Corrupted . | . . . . . . . . . . . . . Combat Hostiles . | . . . . . . . . . . . . . Parts Fried 9 | . . . . . . . . . . 9 . . Impact Corruptions 31 | . . . . . . . . . . 31 . . Robots Melted . | . . . . . . . . . . . . . Combat Hostiles . | . . . . . . . . . . . . . Parts Melted . | . . . . . . . . . . . . . Heat Transferred 568 | . . . 518 . . . 50 . . . . . Parts Sabotaged . | . . . . . . . . . . . . . Parts Stolen . | . . . . . . . . . . . . . Parts Stripped . | . . . . . . . . . . . . . Power Chain Reactions . | . . . . . . . . . . . . . Alert | -11 -10 -10 -10 -8 -7 -6 -5 -4 -3 -2 -1 -1 ------- Run | Yrd Mat Min Sub Mat Fac Fac Fac Fac Res Res Acc Com Peak Influence 479 | . 37 59 . 355 285 197 479 367 336 435 242 161 Initial 192 | . . 14 . 96 151 7 91 192 159 174 168 108 Average 178 | . 20 55 . 150 138 101 221 231 186 271 157 133 Maximum Alert Level 2 | . . . . 1 1 . 2 1 1 2 1 . Low Security (%) 59 | 100 100 100 . 70 68 100 43 41 50 15 82 100 Level 1 39 | . . . . 29 31 . 54 58 49 80 17 . Level 2 . | . . . . . . . 1 . . 4 . . Level 3 . | . . . . . . . . . . . . . Level 4 . | . . . . . . . . . . . . . Level 5 . | . . . . . . . . . . . . . High Security . | . . . . . . . . . . . . . Max Security . | . . . . . . . . . . . . . Squads Dispatched 38 | . 3 . . 4 4 3 8 7 2 4 3 . Investigation 12 | . 1 . . 1 2 . 2 4 . . 2 . Extermination 8 | . . . . . . 1 1 3 . 2 1 . Reinforcement 18 | . 2 . . 3 2 2 5 . 2 2 . . Assault . | . . . . . . . . . . . . . Garrison . | . . . . . . . . . . . . . Intercept . | . . . . . . . . . . . . . Searches Triggered . | . . . . . . . . . . . . . Construction Impeded 1 | . . . . 1 . . . . . . . . Haulers Reinforced 3 | . . . . . . 1 1 . 1 . . . Active Scanning Responses . | . . . . . . . . . . . . . Cargo Convoy Interrupts 1 | . . . . . . . 1 . . . . . Stealth | -11 -10 -10 -10 -8 -7 -6 -5 -4 -3 -2 -1 -1 --------- Run | Yrd Mat Min Sub Mat Fac Fac Fac Fac Res Res Acc Com Distress Signals 8 | . 1 . . 1 . . 3 1 . 1 1 . Communications Jammed 14 | . . . . . 5 . . . 9 . . . Distress Signals 13 | . . . . . 4 . . . 9 . . . Times Spotted 245 | . 3 2 52 22 11 16 31 25 19 25 32 7 Peak Tracking Total 11 | . 5 1 5 5 3 4 5 8 9 5 11 10 Tactical Retreats 21 | . . . 3 . 1 1 5 2 3 1 5 . Traps | -11 -10 -10 -10 -8 -7 -6 -5 -4 -3 -2 -1 -1 ------- Run | Yrd Mat Min Sub Mat Fac Fac Fac Fac Res Res Acc Com Traps Triggered 9 | . 1 . . 1 . 2 2 2 1 . . . Indirectly . | . . . . . . . . . . . . . Trap Hack Attempts . | . . . . . . . . . . . . . Triggered . | . . . . . . . . . . . . . Disarmed . | . . . . . . . . . . . . . Reprogrammed . | . . . . . . . . . . . . . Reused . | . . . . . . . . . . . . . Traps Extracted . | . . . . . . . . . . . . . Installed . | . . . . . . . . . . . . . Triggered 3 | . . . 1 . . . 1 1 . . . . Most Traps Carried 2 | . . . 2 2 . . . . . . . . Objects Rigged 7 | . . . . . . . 7 . . . . . Exploded 6 | . . . . . . . 6 . . . . . Machines | -11 -10 -10 -10 -8 -7 -6 -5 -4 -3 -2 -1 -1 ---------- Run | Yrd Mat Min Sub Mat Fac Fac Fac Fac Res Res Acc Com Machines Disabled 16 | . . . 4 2 . . 9 1 . . . . Max in Single Turn 4 | . . . 1 1 . . 4 1 . . . . Garrison Access 9 | . . . . 1 1 2 2 2 1 . . . Machines Repaired . | . . . . . . . . . . . . . Machines Dismantled . | . . . . . . . . . . . . . Machines Sabotaged . | . . . . . . . . . . . . . Overloaded Fab Kills . | . . . . . . . . . . . . . Hacking | -11 -10 -10 -10 -8 -7 -6 -5 -4 -3 -2 -1 -1 --------- Run | Yrd Mat Min Sub Mat Fac Fac Fac Fac Res Res Acc Com Machines Accessed 93 | . 1 . 2 6 13 11 20 20 5 3 10 2 Terminals 52 | . 1 . . 3 7 6 12 8 4 2 7 2 Fabricators 12 | . . . . . 2 3 1 4 . . 2 . Repair Stations 6 | . . . . 1 1 . 2 1 . . 1 . Recycling Units 6 | . . . . . . . 2 3 . 1 . . Scanalyzers 5 | . . . . 1 1 . 1 2 . . . . Garrison Access 10 | . . . . 1 2 2 2 2 1 . . . Total Hacks 405 | . 4 . 4 15 66 41 161 71 17 5 18 3 Successful 285 | . 1 . 4 12 41 27 114 58 10 4 12 2 Failed 118 | . 3 . . 3 24 14 46 13 7 1 6 1 Catastrophic 12 | . . . . 2 1 . 5 3 1 . . . Database Lockouts 2 | . . . . . 1 . 1 . . . . . Manual 270 | . 3 . . 7 32 33 132 35 14 4 10 . Terminals 280 | . 4 . . 8 42 26 135 33 14 4 11 3 Fabricators 36 | . . . . . 4 11 7 9 . . 5 . Repair Stations 12 | . . . . 2 2 . 4 2 . . 2 . Recycling Units 15 | . . . . . . . 4 10 . 1 . . Scanalyzers 38 | . . . . 3 14 . 6 15 . . . . Garrison Access 20 | . . . . 2 4 4 5 2 3 . . . Terminal Hacks 122 | . 1 . 4 3 16 7 72 11 2 . 4 2 Record 6 | . . . 3 . . . 2 . 1 . . . Part Schematic 1 | . . . . . 1 . . . . . . . Robot Analysis 3 | . . . . . 3 . . . . . . . Prototype ID Bank 54 | . . . . . . 4 48 2 . . . . Open Door 3 | . . . . . . . . . . . 3 . Level Access Points 5 | . . . . . 1 1 1 2 . . . . Branch Access Points 4 | . 1 . . . 1 . 1 . 1 . . . Emergency Access Points 1 | . . . . . . . 1 . . . . . Machine Index 3 | . . . . . . . 2 1 . . . . Terminal Index 5 | . . . . . 1 1 2 1 . . . . Fabricator Index 3 | . . . . . 1 . 1 1 . . . . Scanalyzer Index 2 | . . . . . . . 2 . . . . . Alert Level 4 | . . . . . 2 . 2 . . . . . Unreport Threat 6 | . . . . 1 2 . 3 . . . . . Locate Traps 3 | . . . . . 1 . 2 . . . . . Security Status 1 | . . . . . . . 1 . . . . . Recall Investigation 2 | . . . . . . . . 2 . . . . Recall Extermination 4 | . . . . . . 1 1 1 . . 1 . Recall Reinforcements 3 | . . . . 1 1 . 1 . . . . . Hauler Manifests 1 | . . . . . . . 1 . . . . . Registered Components 1 | . . . . . 1 . . . . . . . Zone Layout 4 | . . . . 1 1 . 1 1 . . . . Derelict Proto ID Bank 1 | . . . 1 . . . . . . . . . Disengage Seal 2 | . . . . . . . . . . . . 2 Fabricator Hacks 17 | . . . . . 2 3 1 8 . . 3 . Network Status 4 | . . . . . . 2 1 . . . 1 . Load Schematic 7 | . . . . . 1 1 . 4 . . 1 . Build 6 | . . . . . 1 . . 4 . . 1 . Repair Station Hacks 11 | . . . . 2 2 . 4 2 . . 1 . Scan Component 6 | . . . . 1 1 . 2 1 . . 1 . Repair 5 | . . . . 1 1 . 2 1 . . . . Recycling Unit Hacks 8 | . . . . . . . 2 5 . 1 . . Report Inventory 3 | . . . . . . . 1 2 . . . . Retrieve Components 5 | . . . . . . . 1 3 . 1 . . Scanalyzer 37 | . . . . 3 13 . 6 15 . . . . Insert Component 15 | . . . . 1 5 . 3 6 . . . . Analyze 22 | . . . . 2 8 . 3 9 . . . . Garrison Access Hacks 9 | . . . . 1 1 2 2 2 1 . . . Seal Access 9 | . . . . 1 1 2 2 2 1 . . . Unauthorized Hacks 81 | . . . . 3 7 15 27 15 7 3 4 . Terminals 55 | . . . . 3 6 5 19 10 5 3 4 . Track 2 | . . . . . . . 1 1 . . . . Assimilate 6 | . . . . . 1 1 3 1 . . . . Botnet 39 | . . . . 3 5 4 11 7 4 2 3 . Detonate 1 | . . . . . . . 1 . . . . . Operators 6 | . . . . . . . 2 1 1 1 1 . Sabotage 1 | . . . . . . . 1 . . . . . Fabricators 12 | . . . . . . 8 4 . . . . . Report 2 | . . . . . . 1 1 . . . . . Liberate 4 | . . . . . . 3 1 . . . . . Fabnet 4 | . . . . . . 3 1 . . . . . Haulers 2 | . . . . . . 1 1 . . . . . Repair Stations . | . . . . . . . . . . . . . Recycling Units 7 | . . . . . . . 2 5 . . . . Monitor 2 | . . . . . . . 1 1 . . . . Reject 1 | . . . . . . . . 1 . . . . Recyclers 3 | . . . . . . . 1 2 . . . . Mask 1 | . . . . . . . . 1 . . . . Scanalyzers 1 | . . . . . 1 . . . . . . . Researchers 1 | . . . . . 1 . . . . . . . Garrison Access 6 | . . . . . . 2 2 . 2 . . . Broadcast 3 | . . . . . . 1 1 . 1 . . . Watchers 3 | . . . . . . 1 1 . 1 . . . Data Cores Recovered 1 | . . . . . . . . . . . 1 . Used . | . . . . . . . . . . . . . Hacking Detections 65 | . 1 . . 5 12 6 12 14 5 3 7 . Full Trace Events 10 | . . . . 1 2 . 1 4 . . 2 . Feedback Events . | . . . . . . . . . . . . . Feedback Blocked . | . . . . . . . . . . . . . Robot Schematics Acquired . | . . . . . . . . . . . . . Robots Built . | . . . . . . . . . . . . . Authchips . | . . . . . . . . . . . . . Time . | . . . . . . . . . . . . . Total Robot Build Rating . | . . . . . . . . . . . . . Part Schematics Acquired 15 | . . . . 1 6 . 3 5 . . . . Parts Built 6 | . . . . . 1 . . 4 . . 1 . Authchips . | . . . . . . . . . . . . . Time 353 | . . . . . 36 . . 282 . . 35 . Total Part Build Rating 33 | . . . . . 3 . . 24 . . 6 . Parts Repaired 4 | . . . . . 1 . 2 1 . . . . Time 156 | . . . . 26 16 . 92 22 . . . . Parts Recycled . | . . . . . . . . . . . . . Recycled Matter . | . . . . . . . . . . . . . Retrieved Matter . | . . . . . . . . . . . . . Retrieved Components 26 | . . . . . . . 2 14 . 10 . . Parts Scanalyzed 14 | . . . . 1 5 . 3 5 . . . . Part Schematics Acquired 14 | . . . . 1 5 . 3 5 . . . . Parts Damaged 1 | . . . . . . . . 1 . . . . Bothacking | -11 -10 -10 -10 -8 -7 -6 -5 -4 -3 -2 -1 -1 ------------ Run | Yrd Mat Min Sub Mat Fac Fac Fac Fac Res Res Acc Com Used RIF Installer . | . . . . . . . . . . . . . Robots Hacked 5 | . . . . . . . 4 1 . . . . Non-combat . | . . . . . . . . . . . . . Combat 5 | . . . . . . . 4 1 . . . . Robot Hacks Applied . | . . . . . . . . . . . . . Relay Couplers Released 2 | . . . . . . . 2 . . . . . Machine Destruction 2 | . . . . . . . 2 . . . . . Fabnet Peak Effective % 9 | . . . . . . . 9 6 1 . . . Autooverrided 5 | . . . . . . . 4 1 . . . . Robots Rewired 1 | . . . . . . . . 1 . . . . Allies Hacked . | . . . . . . . . . . . . . Hacks Repelled . | . . . . . . . . . . . . . Allies | -11 -10 -10 -10 -8 -7 -6 -5 -4 -3 -2 -1 -1 -------- Run | Yrd Mat Min Sub Mat Fac Fac Fac Fac Res Res Acc Com Total Allies 15 | . . 3 . . 1 3 5 3 . . . . Largest Group 3 | . . 3 3 . 1 3 1 2 . . . . Highest-Rated Group 87 | . . 40 40 . 10 87 54 75 . . . . Highest-Rated Ally 54 | . . 16 16 . 10 29 54 45 . . . . Total Orders 3 | . . . . . 2 . . 1 . . . . STAY 1 | . . . . . 1 . . . . . . . ROAM 1 | . . . . . . . . 1 . . . . FOLLOW 1 | . . . . . 1 . . . . . . . Ally Attacks 51 | . . . 18 . . 16 10 7 . . . . Total Damage 985 | . . . 151 . . 286 328 220 . . . . Kills 4 | . . . 2 . . . 1 1 . . . . Allies Corrupted . | . . . . . . . . . . . . . Allies Melted 2 | . . . . . . 1 1 . . . . . Intel | -11 -10 -10 -10 -8 -7 -6 -5 -4 -3 -2 -1 -1 ------- Run | Yrd Mat Min Sub Mat Fac Fac Fac Fac Res Res Acc Com Robot Analysis Total 3 | . . . . . 3 . . . . . . . Derelict Logs Recovered 2 | . . 1 1 . . . . . . . . . Drone Launches . | . . . . . . . . . . . . . Drone Recoveries . | . . . . . . . . . . . . . Exploration | -11 -10 -10 -10 -8 -7 -6 -5 -4 -3 -2 -1 -1 ------------- Run | Yrd Mat Min Sub Mat Fac Fac Fac Fac Res Res Acc Com Turns Passed 9730 | 68 95 415 1733 875 810 722 1547 1456 540 689 730 50 Spaces Moved 11551 | 47 78 320 1221 394 1073 1747 2801 1954 817 436 538 125 Core 312 | 3 . . . . . . . . 31 118 160 . Treads 49 | 6 . . . . . . . . . 43 . . Legs 2404 | 38 78 320 1216 394 . . . . . 28 330 . Wheels 5 | . . . 5 . . . . . . . . . Hover 412 | . . . . . . . . 342 . 70 . . Flight 8369 | . . . . . 1073 1747 2801 1612 786 177 48 125 Fastest Speed 26 | 50 120 120 110 120 32 31 31 26 34 40 40 40 Average Speed 53 | 120 120 120 122 122 42 31 31 30 35 70 95 40 Slowest Speed 750 | 160 120 120 190 190 127 34 102 102 120 200 750 40 Overloaded Moves . | . . . . . . . . . . . . . Propulsion Burnouts . | . . . . . . . . . . . . . Robots Hopped 66 | . . . . . 7 10 33 16 . . . . Cave-ins Triggered 1 | . . . . . . . 1 . . . . . Exploration Rate (%) 34 | 5 28 72 59 42 29 46 61 44 24 12 18 4 Regions Visited 12 Branch Regions 3 Pre-discovered Areas 2 | . . 1 1 . . . . . . . . . Known Exits Taken 6 | . 1 . . . 1 1 1 1 . . 1 . Unknown Exits Taken 6 | 1 . 1 1 1 . . . . 1 1 . . Scrap Searched 12 | . . 1 11 . . . . . . . . . Spaces Dug 157 | . . . . 7 10 32 52 36 11 7 2 . Terrain Destroyed 481 | . . . 17 102 58 53 155 36 48 7 5 . Melee 131 | . . . . . 10 13 52 36 11 7 2 . Projectile 11 | . . . 3 5 . . . . . . 3 . AOE 339 | . . . 14 97 48 40 103 . 37 . . . Terrain Rammed . | . . . . . . . . . . . . . Walls Destroyed . | . . . . . . . . . . . . . Machines Disabled . | . . . . . . . . . . . . . Actions | -11 -10 -10 -10 -8 -7 -6 -5 -4 -3 -2 -1 -1 --------- Run | Yrd Mat Min Sub Mat Fac Fac Fac Fac Res Res Acc Com Total 14152 | 55 79 335 1338 726 1372 1851 3284 2637 1020 663 667 125 Wait 1727 | . . 3 4 264 244 43 374 527 136 90 42 . Move 11417 | 46 77 319 1220 393 1059 1728 2740 1921 816 436 537 125 Hop 57 | . . . . . 6 8 27 16 . . . . Pick Up 66 | 1 1 3 6 6 5 7 9 10 6 5 7 . Fast Attach 105 | 7 1 . 10 10 6 7 7 13 6 21 17 . Attach 54 | . . . 4 1 6 2 8 6 8 10 9 . Detach 21 | . . . 3 . . 3 . 3 6 4 2 . Swap 36 | . . 1 9 7 3 2 4 7 3 . . . Drop 89 | 1 . 1 13 9 8 11 10 13 12 7 4 . Fire 136 | . . 8 68 35 5 6 . . 3 . 11 . Melee 390 | . . . . 1 30 34 87 94 24 90 30 . Ram 4 | . . . . . . . . . . . 4 . Kick 4 | . . . . . . . . . . . 4 . Crush . | . . . . . . . . . . . . . Escape Stasis 36 | . . . . . . . 18 18 . . . . Rewire 9 | . . . . . . . . 9 . . . . Trap . | . . . . . . . . . . . . . Miscellaneous 1 | . . . 1 . . . . . . . . . Route ------- -11/Scrapyard -10/Materials -10/Mines -10/Subcaves (discovered 2 exits: *Mat / [*Rec]) -8/Materials (discovered 2 exits: *Fac x2) -7/Factory (discovered 6 exits: *Fac x4 / Low x2) -6/Factory (discovered 6 exits: *Fac x4 / *Low x2) -5/Factory (discovered 6 exits: *Fac x4 / *Upp x2) -4/Factory (discovered 4 exits: *Res x4) -3/Research (discovered 3 exits: *Res / Tes x2) -2/Research (discovered 2 exits: *Acc / [*Qua]) -1/Access -1/Command History --------- Turn | Location | Event 16 | -11/Scrapyard | Discovered new exit (range 16) 69 | -11/Scrapyard | Entered Materials 106 | -10/Materials | Identified exit to Mines 164 | -10/Materials | Entered Mines 169 | -10/Mines | Met a Derelict bent on vengeance 254 | -10/Mines | Assisted by bots powering up and referring to "LRC-V3" 293 | -10/Mines | Learned location of Zion (-6) 305 | -10/Mines | Build established: Mutant 550 | -10/Mines | Discovered new exit (range 13) 579 | -10/Mines | Entered Subcaves 579 | -10/Subcaves | Accompanied by 3 allies 580 | -10/Subcaves | Shifting Twisted Machinery released Sub. Beam Cannon 587 | -10/Subcaves | Learned location of Storage (-8) 652 | -10/Subcaves | Discovered new exit (range 13) 689 | -10/Subcaves | Lost 3 allies 870 | -10/Subcaves | Disturbed a concealed Subdweller 909 | -10/Subcaves | Ambushed by Subdweller buried in earth 965 | -10/Subcaves | Ambushed by Subdwellers from Twisted Machinery 985 | -10/Subcaves | Core integrity fell below 50% 994 | -10/Subcaves | Core integrity fell below 20% 1081 | -10/Subcaves | A swath of the cavern ceiling suddenly collapsed 1147 | -10/Subcaves | Discovered new exit (range 7) 1177 | -10/Subcaves | Shifting Twisted Machinery released Battle Cannon 1360 | -10/Subcaves | A swath of the cavern ceiling suddenly collapsed 1536 | -10/Subcaves | Visited Clippyterm 2083 | -10/Subcaves | Visited 4L-MR0's lab 2098 | -10/Subcaves | Found Meta Core 2099 | -10/Subcaves | Attached Meta Core, gained temporary slots: Propulsion, Utility, Weapon 2312 | -10/Subcaves | Entered Materials 2312 | -8/Materials | Evolved 4 slots: Propulsion x1, Utility x3 2525 | -8/Materials | Discovered new exit (range 14) 3126 | -8/Materials | Discovered new exit (range 10) 3187 | -8/Materials | Entered Factory 3187 | -7/Factory | Evolved 2 slots: Propulsion x1, Utility x1 3444 | -7/Factory | Discovered new exit (range 15) 3482 | -7/Factory | Repaired Mni. Grenade Launcher 3541 | -7/Factory | Identified exit to Factory 3541 | -7/Factory | Identified exit to Lower Caves 3541 | -7/Factory | Central database locked down 3724 | -7/Factory | Build established: Hacker-Sprinter 3739 | -7/Factory | Fabricated Hacking Suite? 3997 | -7/Factory | Entered another Factory area 3997 | -6/Factory | Accompanied by 1 ally 3997 | -6/Factory | Evolved 2 slots: Utility x2 4075 | -6/Factory | Discovered new exit (range 15) 4080 | -6/Factory | Identified exit to Lower Caves 4241 | -6/Factory | Spotted B-75 Beast 4312 | -6/Factory | Discovered exit to Lower Caves (range 4) 4710 | -6/Factory | Identified exit to Factory 4719 | -6/Factory | Entered another Factory area 4719 | -5/Factory | Evolved 2 slots: Utility x2 4812 | -5/Factory | Repaired Biomechanical Wings 4828 | -5/Factory | Discovered new exit (range 6) 4829 | -5/Factory | Identified exit to Factory 4932 | -5/Factory | Identified exit to Upper Caves 5100 | -5/Factory | Build established: Wizard-Ninja 5327 | -5/Factory | Repaired Imp. Signal Interpreter 5586 | -5/Factory | Central database locked down 5642 | -5/Factory | Assembled infested ambush trap array 5686 | -5/Factory | Crushed by falling debris 5687 | -5/Factory | Cargo convoy interrupted 6266 | -5/Factory | Entered another Factory area 6266 | -4/Factory | Evolved 2 slots: Propulsion x2 6352 | -4/Factory | Identified exit to Research 6370 | -4/Factory | Build established: Hacker-Ninja 6699 | -4/Factory | Fabricated Adv. Hacking Suite? 6745 | -4/Factory | Fabricated Adv. Hacking Suite? 6881 | -4/Factory | Fabricated Adv. System Shield? 7357 | -4/Factory | Lost 4 parts (3n1u) 7486 | -4/Factory | Fabricated Adv. Hacking Suite (x1) 7587 | -4/Factory | Repaired Spear 7704 | -4/Factory | Spotted B-86 Titan 7722 | -4/Factory | Local machine network offline 7722 | -4/Factory | Entered Research 7722 | -3/Research | Evolved 2 slots: Power x1, Utility x1 7752 | -3/Research | Found Enh. Force Lance 7754 | -3/Research | Found Enh. Force Lance 7826 | -3/Research | Identified exit to Testing 8117 | -3/Research | Found Fusion Bomb Launcher 8130 | -3/Research | Spotted B-86 Titan 8170 | -3/Research | Build established: Hacker-Scout 8234 | -3/Research | Spotted B-86 Titan 8250 | -3/Research | Discovered new exit (range 20) 8262 | -3/Research | Entered another Research area 8262 | -2/Research | Evolved 2 slots: Utility x2 8279 | -2/Research | Lost 9 parts (3n5u1w) 8279 | -2/Research | Discovered new exit (range 19) 8529 | -2/Research | Build established: Hacker-Mutant 8687 | -2/Research | Core integrity fell below 50% 8687 | -2/Research | System corruption reached 10% 8725 | -2/Research | Lost 8 parts (1p3n3u1w) 8938 | -2/Research | Discovered new exit (range 10) 8951 | -2/Research | Entered Access 8951 | -1/Access | Evolved 2 slots: Utility x2 8975 | -1/Access | Lost 4 parts (4n) 9358 | -1/Access | Lost 5 parts (2n3u) 9547 | -1/Access | Lost 11 parts (2p3n5u1w) 9587 | -1/Access | Fabricated Adv. System Shield? 9631 | -1/Access | Core integrity fell below 50% 9650 | -1/Access | Core integrity fell below 20% 9678 | -1/Access | Lost 8 parts (2p2n2u2w) 9679 | -1/Access | Discovered new exit (range 8) 9681 | -1/Access | Identified exit to Command 9681 | -1/Access | Entered Command 9693 | -1/Command | Disengaged cave seal 9731 | -1/Command | Destroyed by B1-4L4(p) with Heavy Riot Gun Last Messages --------------- Sealed Barrier opened. 09679_ EXIT=FOUND 09681_ EXIT=IDENTIFIED: COMMAND LOCATION=COMMAND GOAL=ESCAPE 09681_ ALERT: Rogue bot within command proximity. Terminate immediately. 09685_ Connecting with Cave Seal Controls... >>Control(Seal) Accessing seal controls... Disengaging subsurface cave network seal C518. Warning: Hostile activity detected below. 09720_ Acquired 13 matter. 09721_ L8-7AK(i): "What is this place...? Who cares, let's loot it!" 09726_ Connecting with Cave Seal Controls... >>Control(Seal) Accessing seal controls... Disengaging subsurface cave network seal C383. Warning: Hostile activity detected below. Map ----- +----------------------------------------------------+ | ??????????????# ########"%!???####???????????????? | | ??????????????# ## "[%???# #???????????????? | | ??????????????# ## "!!#### ########????????? | | ??????????????# ## "= # #????????? | | ??????????????# ## # ##### # """ #????????? | | ??????????????# ## # #???# # """" #????????? | | ??????????????# ## #M#???# + """" #????????? | | ??????????????# ####+#### #???# # ""T #????????? | | ??????????????# #??# #???# # #????????? | | ??????????????# #??#M#???# ########????????? | | ??????????????# #??# #???# #???????????????? | | ??????????????# #??# #???# #???????????????? | | ???????######## #### #???# #???????????????? | | ???????# + !=#???# #???????????????? | | ???????# ###########i#???# #???????????????? | | ???????# #?????????#p#???# #???????????????? | | ???????# #?????????# #???# #???????????????? | | ???????# #?????????# #???# #???????????????? | | ???????# #?????????# #???# #???????????????? | | ???????################## #???# ???????????????? | | ??????????# + #???# ???????????????? | | ??????????# T"" # #???# #???????????????? | | ??????????# """" # #???# ????????????????? | | ??????????# """" # #???? ????????????????? | | ??????????# """ # #???? ????????????????? | | ??????????# #@#???? ????????????????? | | ??????????############### #???? ????????????????? | | ????????????????????????#R#??????????????????????? | | ????????????????????????# ??????????????????????? | | ????????????????????????# #??????????????????????? | | ????????????????????????# #??????????????????????? | | ????????????????????????#w#??????????????????????? | | ????????????????????????# #??????????????????????? | | ????????????????????????# ??????????????????????? | | ????????????????????????# #??????????????????????? | | ????????????????????????# #??????????????????????? | | ????????????????????????# #??????????????????????? | | ????????????????????????? ???????????????????????? | | ????????????????????????? ???????????????????????? | | ????????????????????????? ???????????????????????? | | ????????????????????????? ???????????????????????? | | ????????????????????????? ???????????????????????? | | ????????????????????????? ???????????????????????? | | ????????????????????????? ???????????????????????? | | ????????????????????????? ???????????????????????? | | ????????????????????????? ???????????????????????? | | ?????????????????????????"???????????????????????? | | ?????????????????????????????????????????????????? | | ?????????????????????????????????????????????????? | | ?????????????????????????????????????????????????? | +----------------------------------------------------+ Best States ------------- Heat Dissipation 90 Energy Generation 45 Energy Capacity 620 Matter Stores 300 Matter Capacity 300 Sight Range 22 Robot Scan Range 16 Terrain Scan Range 20 Terrain Scan Density 210 Jamming Range 16 Power Amplification 20 Additional Mass Support 9 Corruption Block 20 Armor Coverage 800 Phase Shifting 15 Evasion (%) 64 Recoil Reduction 6 Offensive Hacking 42 Defensive Hacking 40 Item Schematics ----------------- Hacking Suite | -8/Materials | Scanalyzed System Shield | -7/Factory | Hacked Imp. Sensor Array | -7/Factory | Scanalyzed Cesium-ion Thruster | -7/Factory | Scanalyzed System Restoration Module | -7/Factory | Scanalyzed Battle Cannon | -7/Factory | Scanalyzed Hpw. Shotgun | -7/Factory | Scanalyzed Adv. Hacking Suite | -5/Factory | Scanalyzed Adv. System Shield | -5/Factory | Scanalyzed Imp. Signal Interpreter | -5/Factory | Scanalyzed Antimatter Reactor | -4/Factory | Scanalyzed Imp. Plasma Cutter | -4/Factory | Scanalyzed Adv. Sensor Array | -4/Factory | Scanalyzed Biomechanical Wings | -4/Factory | Scanalyzed Field Propulsion Array | -4/Factory | Scanalyzed Robot Schematics ------------------ None Fabricated ------------ Hacking Suite | x1 | -7/Factory Adv. Hacking Suite | x1 | -4/Factory Adv. Hacking Suite | x1 | -4/Factory Adv. System Shield | x1 | -4/Factory Adv. Hacking Suite | x1 | -4/Factory Adv. System Shield | x1 | -1/Access Alien Tech Used ----------------- None Achievements -------------- Maximum Efficiency Challenges ------------ None Game ------ Seed SiegeFusionCapacitor Manual? 0 Play Time 03:00:36 Cumulative 205.9 hours Start 2024.05.21 @ 12:32:21 End 2024.05.21 @ 16:09:44 Sessions 1 Manual Loads 0 Difficulty Rogue Special Mode None Game No. 195 Rogue 190 Adventurer 5 Explorer 0 Win Type - Total 3 Types 2/0/0/1/0/0/0/0/0 Lore% 57 Gallery% 77 Achievement% 56 Wizard Run 0 Options --------- Layout 2 ASCII 0 Keyboard 0 Movement Arrows Keybinds 0 Fullscreen 1 Font 24/Terminus Map View 50x44 Zoom Use 0% Tactical HUD 1 Map Filters NONE Filters NONE Steam 1 RUN: 3c6b9743-d909-4ef1-afdb-c3fdc91d0c89